fUSD/lending_fUSD_20241205
["ID","MTS","AMOUNT","RATE_DAILY","PERIOD"]
[344365144,1733379201274,-200.0,7.691e-05,2]
[344365145,1733379201457,-200.0,7.691e-05,2]
[344365146,1733379201486,-15756.98162672,7.691e-05,2]
[344365147,1733379201513,-6647.47662378,7.691e-05,2]
[344365148,1733379201539,-1919.32090125,7.691e-05,2]
[344365149,1733379201565,-3089.87349713,7.691e-05,2]
[344365150,1733379201590,-485.03434016,7.692e-05,2]
[344365151,1733379201615,-308.69245805,7.692e-05,2]
[344365152,1733379201642,-3089.87349713,7.692e-05,2]
[344365153,1733379201668,-232.00218215,7.692e-05,2]
[344365154,1733379201694,-6647.47662378,7.692e-05,2]
[344365155,1733379201719,-473.40166992,7.692e-05,2]
[344365156,1733379201744,-390.22746644,7.692e-05,2]
[344365157,1733379201770,-1738.05384213,7.692e-05,2]
[344365158,1733379201795,-200.0,7.692e-05,2]
[344365159,1733379201822,-200.0,7.692e-05,2]
[344365160,1733379201848,-1919.32090125,7.692e-05,2]
[344365161,1733379201874,-200.0,7.692e-05,2]
[344365162,1733379201902,-977.6552862,7.692e-05,2]
[344365163,1733379201929,-4119.83132951,7.692e-05,2]
[344365164,1733379201955,-412.44832387,7.692e-05,2]
[344365165,1733379201983,-485.03434016,7.693e-05,2]
[344365166,1733379202009,-231.51934353,7.693e-05,2]
[344365167,1733379202036,-200.0,7.693e-05,2]
[344365168,1733379202060,-225.80055264,7.693e-05,2]
[344365169,1733379202087,-200.0,7.693e-05,2]
[344365170,1733379202113,-8863.30216503,7.693e-05,2]
[344365171,1733379202139,-1738.05384213,7.693e-05,2]
[344365172,1733379202165,-11817.73622004,7.693e-05,2]
[344365173,1733379202190,-200.0,7.693e-05,2]
[344365174,1733379202216,-4119.83132951,7.693e-05,2]
[344365175,1733379202241,-1303.5403816,7.694e-05,2]
[344365176,1733379202266,-733.24146465,7.694e-05,2]
[344365177,1733379202293,-733.24146465,7.694e-05,2]
[344365178,1733379202319,-204.62386225,7.694e-05,2]
[344365179,1733379202344,-4119.83132951,7.694e-05,2]
[344365180,1733379202376,-2906.73486073,7.694e-05,2]
[344365181,1733379202402,-2317.40512285,7.695e-05,2]
[344365182,1733379202430,-15756.98162672,7.695e-05,2]
[344365183,1733379202456,-3875.64648097,7.695e-05,2]
[344365184,1733379202482,-15756.98162672,7.695e-05,2]
[344365185,1733379202506,-204.62386225,7.695e-05,2]
[344365186,1733379202532,-549.93109849,7.695e-05,2]
[344365187,1733379202558,-309.336243,7.695e-05,2]
[344365189,1733379202586,-8863.30216503,7.695e-05,2]
[344365190,1733379202611,-200.0,7.695e-05,2]
[344365191,1733379202635,-200.0,7.695e-05,2]
[344365192,1733379202662,-5167.5286413,7.695e-05,2]
[344365193,1733379202686,-200.0,7.695e-05,2]
[344365194,1733379202711,-200.0,7.695e-05,2]
[344365195,1733379202737,-1738.05384213,7.695e-05,2]
[344365196,1733379202762,-272.83181634,7.696e-05,2]
[344365197,1733379202786,-200.0,7.696e-05,2]
[344365198,1733379202813,-733.24146465,7.696e-05,2]
[344365199,1733379202841,-390.22746644,7.696e-05,2]
[344365200,1733379202867,-1303.5403816,7.696e-05,2]
[344365201,1733379202893,-200.0,7.696e-05,2]
[344365202,1733379202922,-200.0,7.696e-05,2]
[344365203,1733379202948,-232.00218215,7.696e-05,2]
[344365204,1733379202974,-412.44832387,7.696e-05,2]
[344365205,1733379202998,-200.0,7.696e-05,2]
[344365206,1733379203022,-977.6552862,7.697e-05,2]
[344365207,1733379203048,-200.0,7.697e-05,2]
[344365208,1733379203074,-308.69245805,7.697e-05,2]
[344365209,1733379203099,-200.0,7.697e-05,2]
[344365210,1733379203123,-200.0,7.697e-05,2]
[344365211,1733379203150,-6647.47662378,7.697e-05,2]
[344365212,1733379203173,-200.0,7.697e-05,2]
[344365213,1733379203197,-231.51934353,7.697e-05,2]
[344365214,1733379203222,-4119.83132951,7.697e-05,2]
[344365215,1733379203246,-200.0,7.697e-05,2]
[344365216,1733379203271,-204.62386225,7.698e-05,2]
[344365217,1733379203295,-473.40166992,7.698e-05,2]
[344365218,1733379203322,-485.03434016,7.698e-05,2]
[344365219,1733379203347,-200.0,7.698e-05,2]
[344365220,1733379203372,-204.62386225,7.698e-05,2]
[344365221,1733379203398,-309.336243,7.698e-05,2]
[344365222,1733379203423,-363.77575512,7.698e-05,2]
[344365223,1733379203449,-200.0,7.699e-05,2]
[344365224,1733379203474,-150.0,7.699e-05,2]
[344365225,1733379203501,-363.77575512,7.699e-05,2]
[344365226,1733379203528,-1738.05384213,7.699e-05,2]
[344365227,1733379203552,-473.40166992,7.699e-05,2]
[344365228,1733379203577,-2000.0,7.699e-05,2]
[344365229,1733379203601,-2000.0,7.699e-05,2]
[344365230,1733379203624,-599.01,7.699e-05,2]
[344365231,1733379203648,-599.01,7.699e-05,2]
[344365232,1733379203672,-599.01,7.699e-05,2]
[344365233,1733379203696,-599.01,7.699e-05,2]
[344365234,1733379203720,-599.01,7.699e-05,2]
[344365235,1733379203744,-599.01,7.699e-05,2]
[344365236,1733379203769,-599.01,7.699e-05,2]
[344365237,1733379203794,-599.01,7.699e-05,2]
[344365238,1733379203825,-599.01,7.699e-05,2]
[344365239,1733379203855,-599.01,7.699e-05,2]
[344365240,1733379203880,-599.01,7.699e-05,2]
[344365241,1733379203908,-599.01,7.699e-05,2]
[344365242,1733379203935,-599.01,7.699e-05,2]
[344365243,1733379203961,-599.01,7.699e-05,2]
[344365244,1733379203987,-599.01,7.699e-05,2]
[344365245,1733379204011,-599.01,7.699e-05,2]
[344365246,1733379204034,-599.06501253,7.699e-05,2]
[344365247,1733379204058,-500.0,7.699e-05,2]
[344365248,1733379204260,-500.0,7.699e-05,2]
[344365249,1733379204286,-353.67596387,7.699e-05,2]
[344365250,1733379204311,-500.0,7.699e-05,2]
[344365251,1733379204336,-500.0,7.699e-05,2]
[344365252,1733379204361,-500.0,7.699e-05,2]
[344365253,1733379204386,-500.0,7.699e-05,2]
[344365254,1733379204410,-500.0,7.699e-05,2]
[344365255,1733379204435,-605.35587283,7.699e-05,2]
[344365256,1733379204461,-500.0,7.699e-05,2]
[344365257,1733379204487,-500.0,7.699e-05,2]
[344365258,1733379204512,-500.0,7.699e-05,2]
[344365259,1733379204538,-515.1791775,7.699e-05,2]
[344365260,1733379204563,-500.0,7.699e-05,2]
[344365261,1733379204588,-500.0,7.699e-05,2]
[344365262,1733379204613,-500.0,7.699e-05,2]
[344365263,1733379204638,-500.0,7.699e-05,2]
[344365264,1733379204663,-500.0,7.699e-05,2]
[344365265,1733379204687,-500.0,7.699e-05,2]
[344365266,1733379204710,-593.61930734,7.699e-05,2]
[344365267,1733379204737,-6647.47662378,7.699e-05,2]
[344365268,1733379204760,-49465.98,7.699e-05,2]
[344365269,1733379204783,-500.0,7.699e-05,2]
[344365270,1733379204807,-500.0,7.699e-05,2]
[344365271,1733379204830,-500.0,7.699e-05,2]
[344365272,1733379204855,-500.0,7.699e-05,2]
[344365273,1733379204879,-500.0,7.699e-05,2]
[344365274,1733379204905,-500.0,7.699e-05,2]
[344365275,1733379204930,-500.0,7.699e-05,2]
[344365276,1733379204956,-500.0,7.699e-05,2]
[344365277,1733379204982,-500.0,7.699e-05,2]
[344365278,1733379205007,-500.0,7.699e-05,2]
[344365279,1733379205031,-395.45402222,7.699e-05,2]
[344365280,1733379205056,-570.82843369,7.699e-05,2]
[344365281,1733379205081,-473.40166992,7.699e-05,2]
[344365282,1733379205107,-1303.5403816,7.699e-05,2]
[344365283,1733379205133,-549.93109849,7.699e-05,2]
[344365284,1733379205160,-977.6552862,7.699e-05,2]
[344365285,1733379205186,-200.0,7.699e-05,2]
[344365286,1733379205212,-309.336243,7.699e-05,2]
[344365287,1733379205239,-200.0,7.699e-05,2]
[344365288,1733379205265,-200.0,7.7e-05,2]
[344365289,1733379205292,-272.83181634,7.7e-05,2]
[344365290,1733379205319,-200.0,7.7e-05,2]
[344365291,1733379205345,-363.77575512,7.7e-05,2]
[344365292,1733379205371,-549.93109849,7.7e-05,2]
[344365293,1733379205396,-231.51934353,7.7e-05,2]
[344365294,1733379205422,-3089.87349713,7.7e-05,2]
[344365295,1733379205449,-733.24146465,7.7e-05,2]
[344365296,1733379205477,-8863.30216503,7.7e-05,2]
[344365297,1733379205507,-9306651.67032315,7.7e-05,2]
[344365307,1733379861420,250.0,6.874e-05,2]
[344365309,1733379955721,197.69,6.876e-05,2]
[344365317,1733380133934,-33000.0,0.0002,120]
[344365322,1733380163070,200.35,6.872e-05,2]
[344365340,1733380232455,-3719.0,7.061e-05,2]
[344365341,1733380232464,-544.9,7.184e-05,2]
[344365342,1733380232474,-200.31525022,7.184e-05,2]
[344365343,1733380232484,-247.6,7.397e-05,2]
[344365344,1733380232494,-500.0,7.473e-05,2]
[344365345,1733380232503,-150.0,7.497e-05,2]
[344365346,1733380232513,-613.79144552,7.498e-05,2]
[344365347,1733380232522,-500.0,7.498e-05,2]
[344365348,1733380232532,-500.0,7.498e-05,2]
[344365349,1733380232542,-500.0,7.498e-05,2]
[344365350,1733380232551,-500.0,7.498e-05,2]
[344365351,1733380232561,-500.0,7.498e-05,2]
[344365352,1733380232570,-500.0,7.498e-05,2]
[344365353,1733380232580,-500.0,7.498e-05,2]
[344365354,1733380232590,-500.0,7.498e-05,2]
[344365355,1733380232600,-500.0,7.498e-05,2]
[344365356,1733380232611,-500.0,7.498e-05,2]
[344365357,1733380232620,-500.0,7.498e-05,2]
[344365358,1733380232630,-150.0,7.498e-05,2]
[344365359,1733380232640,-150.0,7.498e-05,2]
[344365360,1733380232649,-150.0,7.498e-05,2]
[344365361,1733380232659,-150.0,7.498e-05,2]
[344365362,1733380232668,-150.0,7.498e-05,2]
[344365363,1733380232678,-150.0,7.498e-05,2]
[344365364,1733380232687,-150.0,7.498e-05,2]
[344365365,1733380232697,-150.0,7.498e-05,2]
[344365366,1733380232707,-150.0,7.498e-05,2]
[344365367,1733380232716,-150.0,7.498e-05,2]
[344365368,1733380232726,-150.0,7.498e-05,2]
[344365369,1733380232736,-150.0,7.498e-05,2]
[344365370,1733380232745,-150.0,7.498e-05,2]
[344365371,1733380232754,-150.0,7.498e-05,2]
[344365372,1733380232764,-150.0,7.498e-05,2]
[344365373,1733380232773,-150.0,7.498e-05,2]
[344365374,1733380232783,-150.0,7.498e-05,2]
[344365375,1733380232792,-150.0,7.498e-05,2]
[344365376,1733380232802,-150.0,7.498e-05,2]
[344365377,1733380232812,-150.0,7.498e-05,2]
[344365378,1733380232822,-150.0,7.498e-05,2]
[344365379,1733380232832,-150.0,7.498e-05,2]
[344365380,1733380232842,-150.0,7.498e-05,2]
[344365381,1733380232852,-150.0,7.498e-05,2]
[344365382,1733380232864,-150.0,7.498e-05,2]
[344365383,1733380232873,-150.0,7.498e-05,2]
[344365384,1733380232883,-150.0,7.498e-05,2]
[344365385,1733380232893,-150.0,7.498e-05,2]
[344365386,1733380232902,-150.0,7.498e-05,2]
[344365387,1733380232911,-150.0,7.498e-05,2]
[344365388,1733380232921,-150.0,7.498e-05,2]
[344365389,1733380232931,-500.7570411,7.499e-05,2]
[344365390,1733380232940,-588.81870872,7.499e-05,2]
[344365391,1733380232949,-500.0,7.499e-05,2]
[344365392,1733380232959,-500.0,7.499e-05,2]
[344365393,1733380232968,-500.0,7.499e-05,2]
[344365394,1733380232977,-500.74437966,7.499e-05,2]
[344365395,1733380232987,-500.0,7.499e-05,2]
[344365396,1733380232997,-201.76864408,7.499e-05,2]
[344365397,1733380233006,-500.0,7.499e-05,2]
[344365398,1733380233016,-500.0,7.499e-05,2]
[344365399,1733380233026,-500.0,7.499e-05,2]
[344365400,1733380233036,-500.0,7.499e-05,2]
[344365401,1733380233046,-500.0,7.499e-05,2]
[344365402,1733380233056,-500.0,7.499e-05,2]
[344365403,1733380233067,-168.68,7.499e-05,2]
[344365404,1733380233078,-500.0,7.499e-05,2]
[344365405,1733380233089,-500.0,7.499e-05,2]
[344365406,1733380233099,-501.4534812,7.499e-05,2]
[344365407,1733380233110,-500.0,7.499e-05,2]
[344365408,1733380233120,-500.0,7.499e-05,2]
[344365409,1733380233130,-210.57,7.499e-05,2]
[344365410,1733380233140,-500.0,7.499e-05,2]
[344365411,1733380233150,-213.36,7.499e-05,2]
[344365412,1733380233160,-500.26246285,7.499e-05,2]
[344365413,1733380233171,-500.0,7.499e-05,2]
[344365414,1733380233180,-500.0,7.499e-05,2]
[344365415,1733380233190,-500.0,7.499e-05,2]
[344365416,1733380233199,-500.0,7.499e-05,2]
[344365417,1733380233209,-500.0,7.499e-05,2]
[344365418,1733380233219,-500.0,7.499e-05,2]
[344365419,1733380233230,-500.0,7.499e-05,2]
[344365420,1733380233242,-500.0,7.499e-05,2]
[344365421,1733380233251,-500.0,7.499e-05,2]
[344365422,1733380233261,-617.56505928,7.499e-05,2]
[344365423,1733380233271,-500.0,7.499e-05,2]
[344365424,1733380233282,-318.94893479,7.499e-05,2]
[344365425,1733380233292,-500.0,7.499e-05,2]
[344365426,1733380233302,-500.0,7.499e-05,2]
[344365427,1733380233313,-500.0,7.499e-05,2]
[344365428,1733380233324,-500.0,7.499e-05,2]
[344365429,1733380233334,-327.14563276,7.499e-05,2]
[344365430,1733380233343,-500.0,7.499e-05,2]
[344365431,1733380233353,-605.55512509,7.499e-05,2]
[344365432,1733380233366,-576.95,7.499e-05,2]
[344365433,1733380233376,-500.0,7.499e-05,2]
[344365434,1733380233387,-500.0,7.499e-05,2]
[344365435,1733380233397,-590.30234314,7.499e-05,2]
[344365436,1733380233407,-500.0,7.499e-05,2]
[344365437,1733380233417,-565.95,7.499e-05,2]
[344365438,1733380233427,-500.0,7.499e-05,2]
[344365439,1733380233436,-606.36,7.499e-05,2]
[344365440,1733380233446,-500.0,7.499e-05,2]
[344365441,1733380233455,-500.0,7.499e-05,2]
[344365442,1733380233465,-533.96,7.499e-05,2]
[344365443,1733380233476,-500.0,7.499e-05,2]
[344365444,1733380233486,-295.26,7.499e-05,2]
[344365445,1733380233496,-500.0,7.499e-05,2]
[344365446,1733380233506,-500.0,7.499e-05,2]
[344365447,1733380233753,-500.0,7.499e-05,2]
[344365448,1733380233764,-577.76,7.499e-05,2]
[344365449,1733380233774,-500.0,7.499e-05,2]
[344365450,1733380233784,-500.0,7.499e-05,2]
[344365451,1733380233794,-500.0,7.499e-05,2]
[344365452,1733380233804,-216.14106608,7.499e-05,2]
[344365453,1733380233814,-500.0,7.499e-05,2]
[344365454,1733380233824,-500.0,7.499e-05,2]
[344365455,1733380233833,-238.29,7.499e-05,2]
[344365456,1733380233842,-500.0,7.499e-05,2]
[344365457,1733380233852,-500.0,7.499e-05,2]
[344365458,1733380233865,-500.0,7.499e-05,2]
[344365459,1733380233882,-500.0,7.499e-05,2]
[344365460,1733380233892,-500.0,7.499e-05,2]
[344365461,1733380233902,-380.68,7.499e-05,2]
[344365462,1733380233911,-500.0,7.499e-05,2]
[344365463,1733380233921,-500.0,7.499e-05,2]
[344365464,1733380233931,-500.0,7.499e-05,2]
[344365465,1733380233940,-500.0,7.499e-05,2]
[344365466,1733380233949,-500.0,7.499e-05,2]
[344365467,1733380233959,-500.0,7.499e-05,2]
[344365468,1733380233969,-500.0,7.499e-05,2]
[344365469,1733380233979,-500.0,7.499e-05,2]
[344365470,1733380233988,-358.69450516,7.499e-05,2]
[344365471,1733380233998,-500.0,7.499e-05,2]
[344365472,1733380234008,-500.0,7.499e-05,2]
[344365473,1733380234017,-500.0,7.499e-05,2]
[344365474,1733380234027,-500.0,7.499e-05,2]
[344365475,1733380234037,-500.0,7.499e-05,2]
[344365476,1733380234047,-500.0,7.499e-05,2]
[344365477,1733380234057,-500.0,7.499e-05,2]
[344365478,1733380234067,-500.0,7.499e-05,2]
[344365479,1733380234076,-496.14777682,7.499e-05,2]
[344365480,1733380234087,-178.61273493,7.499e-05,2]
[344365481,1733380234096,-500.0,7.499e-05,2]
[344365482,1733380234107,-500.0,7.499e-05,2]
[344365483,1733380234117,-500.0,7.499e-05,2]
[344365484,1733380234126,-500.0,7.499e-05,2]
[344365485,1733380234136,-500.0,7.499e-05,2]
[344365486,1733380234145,-202.65,7.499e-05,2]
[344365487,1733380234155,-500.0,7.499e-05,2]
[344365488,1733380234164,-436.08988701,7.499e-05,2]
[344365489,1733380234176,-735155.92591458,7.5e-05,2]
[344365490,1733380234190,-10208.19799999,7.5e-05,2]
[344365491,1733380234202,-396.78792422,7.5e-05,2]
[344365492,1733380234222,-12232.7821006,7.5e-05,2]
[344365493,1733380234241,-12683.21999993,7.5e-05,2]
[344365494,1733380235933,-1658.0992,7.5e-05,2]
[344365499,1733380238452,-154493.31128722,7.5e-05,2]
[344365500,1733380238692,-500.0,7.499e-05,2]
[344365501,1733380238702,-85291.87454619,7.5e-05,2]
[344365502,1733380238714,-3046.8,7.5e-05,2]
[344365503,1733380238727,-59390195.1321536,7.5e-05,2]
[344365504,1733380238818,-502.37683638,7.499e-05,2]
[344365505,1733380238828,-515.62316362,7.5e-05,2]
[344365691,1733380240733,-71280.14278001,7.5e-05,2]
[344365967,1733380243521,-500.0,7.499e-05,2]
[344365969,1733380243532,-504.38677108,7.499e-05,2]
[344365971,1733380243542,-500.0,7.499e-05,2]
[344365973,1733380243551,-224.7774721,7.499e-05,2]
[344365975,1733380243560,-232149.63392837,7.5e-05,2]
[344365977,1733380243572,-243394.22605328,7.5e-05,2]
[344366033,1733380244111,-13667.1403836,7.5e-05,2]
[344366034,1733380244128,-1481.53064421,7.5e-05,2]
[344366035,1733380244139,-4323.77697725,7.5e-05,2]
[344366036,1733380244160,-25444.99999999,7.5e-05,2]
[344366037,1733380244176,-2940.46990185,7.5e-05,2]
[344366038,1733380244195,-50911.30575014,7.5e-05,2]
[344366054,1733380246492,-1155.249995,7.5e-05,2]
[344366055,1733380246505,-1701.43723698,7.5e-05,2]
[344366056,1733380246518,-2666.19999,7.5e-05,2]
[344366057,1733380246531,-752.284,7.5e-05,2]
[344366058,1733380246555,-2549.25,7.5e-05,2]
[344366059,1733380246582,-361.50725598,7.5e-05,2]
[344366060,1733380246634,-5094.0,7.5e-05,2]
[344366111,1733380249020,-50000.0,0.0002,120]
[344366114,1733380559438,225.52,6.799e-05,2]
[344366116,1733380608114,250.0,6.774e-05,2]
[344366119,1733381156880,435.92,6.661e-05,2]
[344366126,1733381311292,250.0,6.615e-05,2]
[344366133,1733381431638,-368.16669229,7.2e-05,2]
[344366134,1733381431648,-159.51,7.231e-05,2]
[344366135,1733381431658,-198.08,7.397e-05,2]
[344366136,1733381431667,-300.0,7.399e-05,2]
[344366137,1733381431676,-1011.44330771,7.4e-05,2]
[344366138,1733381431698,-1222.1,7.4e-05,2]
[344366139,1733381431709,-266.45669229,7.4e-05,2]
[344366140,1733381431718,-1654.1273,7.4e-05,2]
[344366141,1733381431727,-205.03691736,7.4e-05,2]
[344366142,1733381431736,-507.76,7.427e-05,2]
[344366143,1733381431746,-500.0,7.473e-05,2]
[344366144,1733381431755,-545486.263318,7.48e-05,2]
[344366145,1733381431764,-435.92,7.493e-05,2]
[344366146,1733381431773,-150.0,7.497e-05,2]
[344366147,1733381431784,-500.0,7.498e-05,2]
[344366148,1733381431794,-500.0,7.498e-05,2]
[344366149,1733381431803,-500.0,7.498e-05,2]
[344366150,1733381431814,-500.0,7.498e-05,2]
[344366151,1733381431823,-514.3,7.498e-05,2]
[344366152,1733381431832,-500.0,7.498e-05,2]
[344366153,1733381431841,-500.0,7.498e-05,2]
[344366154,1733381431851,-500.0,7.498e-05,2]
[344366155,1733381431860,-500.0,7.498e-05,2]
[344366156,1733381431870,-500.0,7.498e-05,2]
[344366157,1733381431879,-500.0,7.498e-05,2]
[344366158,1733381431888,-500.0,7.498e-05,2]
[344366159,1733381431898,-573.63,7.498e-05,2]
[344366160,1733381431907,-500.0,7.498e-05,2]
[344366161,1733381431916,-500.0,7.498e-05,2]
[344366162,1733381431926,-271.51688813,7.498e-05,2]
[344366163,1733381431935,-647.08286608,7.498e-05,2]
[344366164,1733381431944,-500.0,7.498e-05,2]
[344366165,1733381431953,-500.0,7.498e-05,2]
[344366166,1733381431963,-500.0,7.498e-05,2]
[344366167,1733381431972,-500.0,7.498e-05,2]
[344366168,1733381431981,-500.0,7.498e-05,2]
[344366169,1733381431990,-500.0,7.498e-05,2]
[344366170,1733381431999,-500.0,7.498e-05,2]
[344366171,1733381432009,-500.0,7.498e-05,2]
[344366172,1733381432018,-500.0,7.498e-05,2]
[344366173,1733381432027,-500.85438536,7.498e-05,2]
[344366174,1733381432036,-506.79,7.498e-05,2]
[344366175,1733381432046,-504.41,7.498e-05,2]
[344366176,1733381432055,-494.85,7.498e-05,2]
[344366177,1733381432065,-495.12,7.499e-05,2]
[344366178,1733381432074,-1968.72,7.499e-05,2]
[344366179,1733381432084,-506.61,7.499e-05,2]
[344366180,1733381432094,-497.58,7.499e-05,2]
[344366181,1733381432103,-496.47,7.499e-05,2]
[344366182,1733381432113,-500.21,7.499e-05,2]
[344366183,1733381432123,-500.0,7.499e-05,2]
[344366184,1733381432133,-500.0,7.499e-05,2]
[344366185,1733381432142,-630.61087473,7.499e-05,2]
[344366186,1733381432152,-500.00000001,7.499e-05,2]
[344366187,1733381432162,-500.0,7.499e-05,2]
[344366188,1733381432172,-500.0,7.499e-05,2]
[344366189,1733381432182,-500.0,7.499e-05,2]
[344366190,1733381432191,-500.0,7.499e-05,2]
[344366191,1733381432201,-500.0,7.499e-05,2]
[344366192,1733381432210,-226.57,7.499e-05,2]
[344366193,1733381432219,-500.0,7.499e-05,2]
[344366194,1733381432229,-500.0,7.499e-05,2]
[344366195,1733381432238,-500.0,7.499e-05,2]
[344366196,1733381432247,-404.45374627,7.499e-05,2]
[344366197,1733381432257,-590.38949021,7.499e-05,2]
[344366198,1733381432267,-500.0,7.499e-05,2]
[344366199,1733381432276,-430.51705867,7.499e-05,2]
[344366200,1733381432286,-505.6165143,7.499e-05,2]
[344366201,1733381432295,-508.03672992,7.499e-05,2]
[344366202,1733381432304,-500.0,7.499e-05,2]
[344366203,1733381432315,-266.31,7.499e-05,2]
[344366204,1733381432325,-500.0,7.499e-05,2]
[344366205,1733381432334,-2059.864,7.499e-05,2]
[344366206,1733381432342,-174.326,7.499e-05,2]
[344366207,1733381432352,-500.0,7.499e-05,2]
[344366208,1733381432361,-500.0,7.499e-05,2]
[344366209,1733381432368,-500.0,7.499e-05,2]
[344366210,1733381432376,-500.0,7.499e-05,2]
[344366211,1733381432385,-500.0,7.499e-05,2]
[344366212,1733381432392,-500.0,7.499e-05,2]
[344366213,1733381432400,-413.32879305,7.499e-05,2]
[344366214,1733381432408,-500.0,7.499e-05,2]
[344366215,1733381432416,-500.0,7.499e-05,2]
[344366216,1733381432426,-500.0,7.499e-05,2]
[344366217,1733381432436,-500.0,7.499e-05,2]
[344366218,1733381432445,-500.0,7.499e-05,2]
[344366219,1733381432455,-500.0,7.499e-05,2]
[344366220,1733381432464,-500.0,7.499e-05,2]
[344366221,1733381432474,-500.0,7.499e-05,2]
[344366222,1733381432483,-366.95080151,7.499e-05,2]
[344366223,1733381432492,-500.0,7.499e-05,2]
[344366224,1733381432502,-500.0,7.499e-05,2]
[344366225,1733381432511,-500.0,7.499e-05,2]
[344366226,1733381432521,-431.68581478,7.499e-05,2]
[344366227,1733381432530,-513.48633605,7.499e-05,2]
[344366228,1733381432539,-503.33463255,7.499e-05,2]
[344366229,1733381432549,-502.30268942,7.499e-05,2]
[344366230,1733381432560,-509.14869757,7.499e-05,2]
[344366231,1733381432573,-500.0,7.499e-05,2]
[344366232,1733381432583,-500.0,7.499e-05,2]
[344366233,1733381432592,-454.38,7.499e-05,2]
[344366234,1733381432602,-500.0,7.499e-05,2]
[344366235,1733381432612,-500.0,7.499e-05,2]
[344366236,1733381432621,-500.0,7.499e-05,2]
[344366237,1733381432631,-500.0,7.499e-05,2]
[344366238,1733381432642,-473.59,7.499e-05,2]
[344366239,1733381432652,-500.0,7.499e-05,2]
[344366240,1733381432661,-508.30460379,7.499e-05,2]
[344366241,1733381432672,-500.0,7.499e-05,2]
[344366242,1733381432681,-613.13322652,7.499e-05,2]
[344366244,1733381432690,-438.87,7.499e-05,2]
[344366246,1733381432699,-326.74377139,7.499e-05,2]
[344366248,1733381432709,-193.52793041,7.499e-05,2]
[344366249,1733381432719,-500.0,7.499e-05,2]
[344366251,1733381432728,-486.69460105,7.499e-05,2]
[344366253,1733381432737,-500.0,7.499e-05,2]
[344366255,1733381432746,-500.0,7.499e-05,2]
[344366257,1733381432755,-281.16,7.499e-05,2]
[344366259,1733381432764,-500.0,7.499e-05,2]
[344366261,1733381432773,-500.0,7.499e-05,2]
[344366263,1733381432783,-500.0,7.499e-05,2]
[344366265,1733381432792,-500.0,7.499e-05,2]
[344366268,1733381432801,-500.0,7.499e-05,2]
[344366271,1733381432812,-500.0,7.499e-05,2]
[344366274,1733381432822,-500.0,7.499e-05,2]
[344366276,1733381432833,-636.94,7.499e-05,2]
[344366278,1733381432842,-500.0,7.499e-05,2]
[344366280,1733381432851,-500.0,7.499e-05,2]
[344366282,1733381432861,-500.0,7.499e-05,2]
[344366284,1733381432870,-500.0,7.499e-05,2]
[344366286,1733381432880,-500.0,7.499e-05,2]
[344366288,1733381432890,-500.0,7.499e-05,2]
[344366290,1733381432899,-500.0,7.499e-05,2]
[344366292,1733381432909,-500.0,7.499e-05,2]
[344366294,1733381432919,-500.0,7.499e-05,2]
[344366296,1733381432928,-500.0,7.499e-05,2]
[344366298,1733381432937,-500.0,7.499e-05,2]
[344366300,1733381432946,-500.0,7.499e-05,2]
[344366302,1733381432955,-500.0,7.499e-05,2]
[344366304,1733381432964,-500.0,7.499e-05,2]
[344366306,1733381432973,-500.0,7.499e-05,2]
[344366308,1733381432982,-500.0,7.499e-05,2]
[344366310,1733381432991,-500.0,7.499e-05,2]
[344366311,1733381433000,-500.0,7.499e-05,2]
[344366313,1733381433009,-500.0,7.499e-05,2]
[344366315,1733381433018,-500.0,7.499e-05,2]
[344366317,1733381433027,-386.68784259,7.499e-05,2]
[344366319,1733381433036,-500.0,7.499e-05,2]
[344366321,1733381433046,-500.0,7.499e-05,2]
[344366323,1733381433055,-500.0,7.499e-05,2]
[344366325,1733381433067,-500.0,7.499e-05,2]
[344366327,1733381433077,-500.0,7.499e-05,2]
[344366329,1733381433087,-500.0,7.499e-05,2]
[344366331,1733381433097,-469.53371246,7.499e-05,2]
[344366333,1733381433107,-500.0,7.499e-05,2]
[344366335,1733381433117,-500.0,7.499e-05,2]